bitfinex/quotes_ETHUSD_20241119
["timestamp","ask_amount","ask_price","bid_price","bid_amount"]
[1732052450441,3.24447,3082.2,3081.3,3.017459]
[1732052450442,3.24479,3081.9,3081.3,2.59629]
[1732052450666,3.24447,3082.2,3081.2,2.59639]
[1732052450972,3.24447,3082.2,3081.1,1.6153]
[1732052450973,3.24464,3082.0,3081.3,2.59624]
[1732052451530,0.324447,3082.1,3081.5,2.59611]
[1732052451843,0.324447,3082.1,3081.3,2.59624]
[1732052451844,3.24467,3082.0,3081.4,2.59621]
[1732052452047,3.24447,3082.2,3081.5,2.59605]
[1732052452241,3.0,3082.5,3081.8,2.59586]
[1732052452451,3.24422,3082.4,3081.8,2.59586]
[1732052453434,3.24422,3082.4,3081.7,1.5718]
[1732052453770,3.24433,3082.3,3081.7,1.5718]
[1732052453971,3.24456,3082.1,3081.7,1.5718]
[1732052454488,3.24433,3082.3,3081.7,1.5718]
[1732052454630,3.24444,3082.2,3081.7,1.5718]
[1732052455258,3.24485,3081.8,3081.3,1.5589]
[1732052455580,3.24473,3082.0,3081.3,1.5589]
[1732052455761,0.324473,3081.9,3081.3,1.5589]
[1732052455935,3.24473,3082.0,3081.3,1.5589]
[1732052456130,6.48945,3082.0,3081.3,4.15515]
[1732052456330,3.24447,3082.2,3081.4,2.59621]
[1732052456565,3.568987,3082.1,3081.5,2.59609]
[1732052456736,3.24426,3082.4,3081.6,2.59602]
[1732052457135,3.2445,3082.2,3081.6,2.59602]
[1732052457881,3.24454,3082.1,3081.6,2.59602]
[1732052460255,4.5571,3082.7,3082.0,2.59571]
[1732052460256,3.24409,3082.6,3082.0,2.59571]
[1732052460456,3.24409,3082.6,3082.1,1.925171]
[1732052460655,3.24409,3082.6,3082.1,1.6656]
[1732052461794,3.24385,3082.8,3082.1,1.6656]
[1732052461997,3.24385,3082.8,3082.2,2.59549]
[1732052462146,3.24385,3082.8,3082.2,2.59548]
[1732052462347,3.24385,3082.8,3082.1,1.6656]
[1732052462348,3.24397,3082.7,3082.1,4.26122]
[1732052462543,3.568355,3082.7,3082.1,4.26122]
[1732052463586,1.5442,3083.0,3082.1,1.6656]
[1732052463587,3.24412,3082.5,3082.1,1.6656]
[1732052463793,3.24449,3082.2,3081.8,1.6656]
[1732052464258,3.24431,3082.4,3081.8,1.6656]
[1732052464458,3.2442,3082.5,3081.9,2.59575]
[1732052464878,3.244,3082.7,3081.9,2.59575]
[1732052465089,1.5442,3083.0,3082.2,2.59554]
[1732052465408,3.24392,3082.7,3082.2,2.59554]
[1732052465758,3.24422,3082.5,3081.8,4.26143]
[1732052465959,3.24436,3082.3,3081.8,1.6656]
[1732052467064,3.24422,3082.5,3081.9,2.5958]
[1732052467303,3.0,3082.8,3082.1,2.59562]
[1732052467510,3.24397,3082.7,3082.1,2.59562]
[1732052467712,3.2438,3082.8,3082.2,2.59547]
[1732052468476,3.24392,3082.7,3082.1,2.59557]
[1732052468780,6.48818,3082.6,3082.0,2.59569]
[1732052468979,3.03165887,3083.8,3083.3,1.5151]
[1732052469204,0.33727704,3083.8,3083.0,2.59481]
[1732052469407,4.02866589,3083.8,3083.2,2.59468]
[1732052470119,3.24348,3083.2,3082.9,1.5151]
[1732052470322,1.651,3083.3,3082.1,2.59561]
[1732052470482,3.24392,3082.7,3082.1,2.59558]
[1732052470677,3.24402,3082.6,3082.1,2.59558]
[1732052470900,3.24415,3082.5,3082.0,1.51]
[1732052471327,3.24415,3082.5,3082.0,4.1057]
[1732052471632,3.24426,3082.4,3082.0,1.51]
[1732052471790,3.24415,3082.5,3082.0,1.51]
[1732052471996,0.648794,3082.6,3082.1,2.59561]
[1732052472198,6.48789,3082.7,3082.1,2.59561]
[1732052472390,3.24375,3082.9,3082.2,2.59554]
[1732052472919,3.24375,3082.9,3082.0,1.51]
[1732052472920,3.24331,3083.3,3082.4,2.59538]
[1732052473079,3.24339,3083.2,3082.6,2.59516]
[1732052473421,3.24308,3083.5,3082.9,2.59493]
[1732052474280,4.76661,3083.7,3082.6,1.6215]
[1732052474526,4.76661,3083.7,3083.2,2.59469]
[1732052474527,2.000361,3083.7,3083.2,2.59469]
[1732052474695,1.5237,3083.7,3083.2,2.59466]
[1732052474882,1.5867,3084.0,3083.5,2.5944]
[1732052475082,3.24224,3084.3,3083.8,2.59417]
[1732052475329,5.93635183,3084.6,3083.1,0.259487]
[1732052475330,3.24192,3084.6,3083.9,2.59411]
[1732052475538,3.86926497,3084.6,3084.1,2.59393]
[1732052475830,3.24203,3084.5,3083.9,2.59411]
[1732052477220,3.24218,3084.4,3083.7,2.59421]
[1732052477593,3.2423,3084.3,3083.5,2.59439]
[1732052477793,3.2423,3084.3,3083.4,1.6215]
[1732052477794,3.24206,3084.5,3083.9,2.59404]
[1732052477996,0.62734497,3084.6,3083.9,2.59404]
[1732052478197,3.24219,3084.4,3083.7,5.18851]
[1732052478484,3.24233,3084.2,3083.7,2.59423]
[1732052479085,3.24196,3084.6,3083.7,2.59423]
[1732052479292,3.24219,3084.4,3083.7,3.113094]
[1732052479696,3.24194,3084.6,3083.4,1.6215]
[1732052479861,6.24182,3084.7,3084.1,2.59388]
[1732052480150,6.448773,3084.7,3084.1,2.59388]
[1732052481648,6.448773,3084.7,3084.1,4.11948]
[1732052482205,3.0,3084.8,3084.3,2.59371]
[1732052482606,3.24163,3084.9,3084.3,2.59371]
[1732052482849,3.24139,3085.1,3084.5,2.5936]
[1732052483048,3.24121,3085.3,3084.6,2.59352]
[1732052483247,4.80303,3085.4,3084.8,2.59331]
[1732052483489,3.24113,3085.4,3084.8,2.59331]
[1732052483641,3.24087,3085.6,3084.8,2.59331]
[1732052483642,3.24087,3085.6,3084.9,4.11885]
[1732052483837,3.565067,3085.5,3084.9,1.5256]
[1732052484079,3.24036,3086.1,3085.2,2.59294]
[1732052484080,3.24063,3085.9,3085.2,2.59294]
[1732052484285,3.24084,3085.7,3085.0,2.59317]
[1732052484451,3.24102,3085.5,3084.9,4.11886]
[1732052484633,3.24084,3085.7,3085.1,2.59305]
[1732052484837,3.5973303,3085.7,3085.1,2.59305]
[1732052485273,0.3564903,3085.7,3084.9,1.5256]
[1732052485440,3.24116,3085.4,3084.9,1.5256]
[1732052485647,3.24126,3085.3,3084.9,1.5256]
[1732052486842,4.6661,3085.8,3084.5,1.5127]
[1732052487187,3.24158,3085.0,3084.5,4.1063]
[1732052487838,3.24158,3085.0,3084.5,1.5127]
[1732052488039,3.24131,3085.2,3084.5,1.5127]
[1732052488262,3.24035,3086.1,3085.5,1.5127]
[1732052488467,3.24029,3086.2,3085.6,2.59266]
[1732052488667,3.24029,3086.2,3085.6,2.59262]
[1732052488878,3.24029,3086.2,3085.6,5.18523]
[1732052489079,3.24029,3086.2,3085.6,2.59261]
[1732052489281,0.664692,3086.2,3085.7,2.59254]
[1732052489494,0.664692,3086.2,3085.5,1.5127]
[1732052489495,3.0,3086.3,3085.8,2.5925]
[1732052489643,0.16661,3086.4,3085.9,2.59241]
[1732052489849,0.340663,3086.3,3085.9,2.59241]
[1732052490147,0.340663,3086.3,3085.8,2.5925]
[1732052490347,3.24028,3086.2,3085.6,2.59264]
[1732052490546,0.6580943,3086.1,3085.5,1.5127]
[1732052491085,0.6580943,3086.1,3085.6,2.59268]
[1732052491742,3.8985043,3086.1,3085.2,2.59297]
[1732052491939,3.63029743,3086.0,3085.4,2.59279]
[1732052492387,3.63029743,3086.0,3085.4,5.18558]
[1732052492891,3.63029743,3086.0,3085.5,2.59277]
[1732052493057,3.24046,3086.0,3085.5,2.59277]
[1732052493385,3.24046,3086.0,3085.4,2.59283]
[1732052494065,0.55,3086.1,3085.6,2.59262]
[1732052494967,3.79033,3086.1,3085.6,2.59262]
[1732052495170,3.79033,3086.1,3085.7,1.5605]
[1732052496187,0.55,3086.1,3085.7,1.5605]
[1732052496497,3.7904,3086.1,3085.7,1.5605]
[1732052497753,3.2404,3086.1,3085.7,1.5605]
[1732052499815,3.24017,3086.3,3085.7,4.15309]
[1732052500014,3.24017,3086.3,3085.7,1.5605]
[1732052500184,3.24017,3086.3,3085.8,2.59249]
[1732052500581,3.0,3086.4,3085.9,2.59242]
[1732052500776,6.24005,3086.4,3085.8,2.59249]
[1732052501125,0.947999,3086.4,3085.4,1.6065]
[1732052501323,3.0,3086.6,3085.2,2.59302]
[1732052501324,3.24075,3085.8,3085.2,2.59302]
[1732052501614,3.24045,3086.0,3085.4,2.59277]
[1732052501916,3.24044,3086.0,3085.4,2.59277]
[1732052502118,3.24044,3086.0,3085.1,1.6065]
[1732052502276,3.0,3086.1,3085.2,2.59302]
[1732052502482,3.0,3086.1,3085.7,2.59253]
[1732052503125,3.23965,3086.8,3085.8,4.22381]
[1732052503126,3.24009,3086.4,3085.8,4.22381]
[1732052503281,3.24012,3086.3,3085.8,4.22381]
[1732052505110,3.24009,3086.4,3085.8,4.22381]
[1732052505322,3.0,3086.5,3085.8,4.22377]
[1732052505544,3.24017,3086.3,3085.8,1.6313]
[1732052505704,3.24044,3086.0,3085.8,1.6313]
[1732052506030,3.24044,3086.0,3085.1,1.6313]
[1732052506031,3.24096,3085.5,3085.1,1.6313]
[1732052506208,3.24081,3085.7,3085.1,4.22433]
[1732052506410,6.48125,3085.9,3085.2,2.59301]
[1732052506610,3.24066,3085.8,3085.2,2.59301]
[1732052507127,3.24076,3085.7,3085.2,2.59301]
[1732052507335,6.48125,3085.9,3085.2,5.18596]
[1732052507634,1.5894,3086.0,3085.2,2.59295]
[1732052507779,6.48169,3085.7,3085.1,2.3389796]
[1732052508299,6.48169,3085.7,3085.1,4.9320796]
[1732052508616,3.24086,3085.6,3085.1,4.9320796]
[1732052508925,3.24084,3085.7,3085.2,2.59302]
[1732052511131,3.24057,3085.9,3085.3,2.59288]
[1732052511432,3.24065,3085.8,3085.3,2.59288]
[1732052513029,3.24076,3085.7,3085.1,2.3389796]
[1732052513547,3.24057,3085.9,3085.2,2.59294]
[1732052513689,3.24066,3085.8,3085.3,2.59293]
[1732052513887,3.24066,3085.8,3085.2,2.59294]
[1732052514202,3.24066,3085.8,3085.2,5.18591]
[1732052514529,3.24066,3085.8,3085.2,2.59294]
[1732052515051,3.24066,3085.8,3085.2,5.1859]
[1732052515629,3.24066,3085.8,3085.3,2.5929]
[1732052516048,1.5081,3086.2,3085.1,1.6313]
[1732052516189,3.241,3085.5,3085.1,1.6313]
[1732052516382,6.48206,3085.5,3085.1,1.6313]
[1732052516616,3.241,3085.5,3085.1,1.6313]
[1732052517527,0.55,3086.1,3085.1,1.6313]
[1732052517732,0.50581,3086.0,3084.8,1.5177]
[1732052517941,3.24045,3086.0,3085.4,2.59278]
[1732052518231,3.24045,3086.0,3085.5,2.59276]
[1732052518392,3.24045,3086.0,3085.6,1.5724]
[1732052518590,3.24045,3086.0,3085.5,2.59276]
[1732052518591,3.24079,3085.7,3085.3,1.5724]
[1732052519020,0.798878,3086.0,3085.3,1.5724]
[1732052519216,3.24082,3085.7,3085.3,1.5724]
[1732052519838,3.24073,3085.8,3085.3,1.5724]
[1732052520129,3.24086,3085.6,3085.0,6.75867]
[1732052520331,3.24086,3085.6,3085.0,4.16553]
[1732052520537,1.6344,3085.7,3084.7,1.5771]
[1732052520701,3.24105,3085.5,3084.9,2.59323]
[1732052521034,3.24099,3085.5,3085.0,2.59318]
[1732052521246,4.02582671,3086.4,3085.9,2.59243]
[1732052521386,0.33709731,3087.0,3086.2,1.5771]
[1732052521589,0.42,3087.4,3086.1,3.63430522]
[1732052521590,0.42,3087.4,3087.1,2.59137]
[1732052521886,0.42,3087.4,3087.2,2.59127]
[1732052522089,0.42,3087.4,3087.3,2.59126]
[1732052523943,0.42,3087.4,3087.1,2.59141]
[1732052523944,0.42,3087.4,3087.2,2.59128]
[1732052524292,0.42,3087.4,3087.3,2.59126]
[1732052525718,0.42,3087.4,3086.9,4.16868]
[1732052526027,0.785884,3087.4,3087.1,2.59141]
[1732052526338,0.42,3087.4,3087.3,2.59126]
[1732052528958,0.42,3087.4,3086.9,4.16866]
[1732052529114,0.42,3087.4,3086.7,5.18343]
[1732052529452,0.42,3087.4,3086.7,2.5917]
[1732052529453,1.272142,3087.4,3086.7,2.5917]
[1732052529750,1.272142,3087.4,3086.9,2.59158]
[1732052530152,0.42,3087.4,3087.1,2.59135]
[1732052530449,0.42,3087.4,3086.6,1.6407]
[1732052530450,0.42,3087.4,3087.0,2.5915]
[1732052530862,0.42,3087.4,3087.1,2.59141]
[1732052531044,0.42,3087.4,3087.2,2.59128]
[1732052531213,0.42,3087.4,3087.3,2.59126]
[1732052531418,0.42,3087.4,3087.1,5.18278]
[1732052531940,0.42,3087.4,3087.1,2.59137]
[1732052532452,0.42,3087.4,3087.2,2.59132]
[1732052533421,0.42,3087.4,3087.2,2.59133]
[1732052534711,0.42,3087.4,3086.7,5.18349]
[1732052534914,0.42,3087.4,3087.3,4.23196]
[1732052534915,0.2180188,3087.4,3087.3,4.23196]
[1732052536257,0.2180188,3087.4,3087.3,4.24196]
[1732052536562,0.2180188,3087.4,3087.3,10.87626522]
[1732052536768,4.86115,3088.9,3088.2,2.59045]
[1732052537055,4.86115,3088.9,3088.0,4.22403]
[1732052537056,1.6237,3088.9,3088.0,4.22403]
[1732052537253,4.86119,3088.9,3088.0,4.646433]
[1732052537415,4.86119,3088.9,3088.1,2.59056]
[1732052537416,3.23767,3088.7,3088.1,2.59056]
[1732052537818,4.86119,3088.9,3087.3,8.25019974]
[1732052537819,3.23821,3088.2,3087.5,2.59102]
[1732052538131,3.2383,3088.1,3087.5,2.59102]
[1732052538472,3.23825,3088.1,3087.5,2.59102]
[1732052538646,0.647646,3088.1,3087.4,2.59114]
[1732052538820,3.23821,3088.2,3087.4,2.59114]
[1732052538821,3.23821,3088.2,3087.5,2.59104]
[1732052539020,3.2383,3088.1,3087.5,2.59104]
[1732052539259,6.47643,3088.2,3087.5,2.59104]
[1732052539566,0.647643,3088.1,3087.5,2.59104]
[1732052539747,3.885933,3088.1,3087.5,2.59104]
[1732052539996,3.23836,3088.0,3087.5,2.59104]
[1732052540511,3.23829,3088.1,3087.5,2.59104]
[1732052540716,3.23829,3088.1,3087.5,5.18208]
[1732052541010,3.23829,3088.1,3087.6,2.59096]
[1732052541307,3.885924,3088.1,3087.6,2.59096]
[1732052541510,3.23829,3088.1,3087.6,2.59096]
[1732052541984,3.23808,3088.3,3087.8,2.59082]
[1732052542171,1.973067,3088.6,3087.3,1.5604]
[1732052542507,3.23871,3087.7,3087.0,4.14464]
[1732052542685,3.23871,3087.7,3087.1,2.59138]
[1732052543511,3.23877,3087.6,3087.1,2.59141]
[1732052544093,3.714682,3087.8,3087.2,2.59126]
[1732052544279,0.476062,3087.8,3087.4,2.5911]
[1732052544918,1.522,3087.9,3087.4,2.5911]
[1732052545177,3.23866,3087.7,3087.2,2.59127]
[1732052545672,4.76052,3087.9,3087.2,2.59127]
[1732052545899,1.522,3087.9,3087.4,2.59117]
[1732052546216,1.522,3087.9,3087.4,2.59113]
[1732052546718,3.23839,3088.0,3087.5,5.1821]
[1732052546928,4.88275,3088.2,3087.7,2.59091]
[1732052547129,1.6446,3088.2,3087.7,2.59086]
[1732052547455,3.23803,3088.3,3087.7,2.59086]
[1732052547629,1.8419067,3088.5,3087.9,2.5907]
[1732052547779,0.54034437,3088.4,3088.0,2.59066]
[1732052547979,4.88241,3088.5,3087.8,2.59078]
[1732052548218,1.6446,3088.5,3088.0,2.59061]
[1732052548431,3.23777,3088.6,3088.1,2.59056]
[1732052548580,4.89204,3088.8,3088.3,2.59039]
[1732052548780,5.381244,3088.8,3088.3,2.59039]
[1732052549406,5.381244,3088.8,3088.1,2.59058]
[1732052549581,3.23778,3088.6,3087.9,2.59071]
[1732052550029,3.23782,3088.5,3087.9,5.18141]
[1732052550321,3.23797,3088.4,3087.7,2.59087]
[1732052550531,7.12353,3088.4,3087.8,2.59083]
[1732052550822,3.23797,3088.4,3087.8,2.59083]
[1732052551232,3.23804,3088.3,3087.8,2.59083]
[1732052551393,3.2382,3088.2,3087.6,1.515]
[1732052551793,3.2382,3088.2,3087.7,2.59091]
[1732052553641,3.2382,3088.2,3087.6,4.10594]
[1732052553799,3.23818,3088.2,3087.6,4.10594]
[1732052554490,6.4764,3088.2,3087.6,4.10594]
[1732052554694,2.21594,3088.2,3087.2,1.5298]
[1732052555136,3.23864,3087.8,3087.2,4.12112]
[1732052555340,3.23864,3087.8,3087.3,2.5912]
[1732052555550,3.2384,3088.0,3087.2,1.5298]
[1732052555551,3.0,3088.0,3087.2,1.5298]
[1732052555701,3.23898,3087.4,3086.9,4.12136]
[1732052556137,3.23898,3087.4,3086.9,1.5298]
[1732052556346,1.5683,3087.6,3086.9,1.5298]
[1732052556550,3.23939,3087.0,3086.6,1.5298]
[1732052556717,3.23923,3087.2,3086.6,1.5298]
[1732052556923,3.23923,3087.2,3086.6,4.1216]
[1732052557120,3.23929,3087.1,3086.6,4.1216]
[1732052557329,3.2394,3087.0,3086.3,4.24384]
[1732052557549,3.23974,3086.7,3086.3,1.6518]
[1732052557847,3.23998,3086.5,3086.0,4.24413]
[1732052558030,4.6587,3087.0,3086.0,2.335464]
[1732052558343,3.23913,3087.3,3086.6,4.21714]
[1732052558722,3.23887,3087.5,3086.8,2.59167]
[1732052558929,3.23897,3087.4,3086.8,2.59167]
[1732052559233,3.23897,3087.4,3086.8,3.272508]
[1732052559434,3.23897,3087.4,3086.9,2.59158]
[1732052561466,3.23891,3087.5,3086.9,2.59158]
[1732052562031,3.239,3087.4,3086.9,2.59158]
[1732052562486,3.239,3087.4,3086.9,2.51055586]
[1732052562780,3.886807,3087.4,3086.7,2.59175]
[1732052562925,3.23903,3087.4,3086.9,2.59157]
[1732052563374,3.23903,3087.4,3086.7,2.59175]
[1732052563375,3.23908,3087.3,3086.7,2.59175]
[1732052563868,3.23927,3087.2,3086.6,1.6253]
[1732052564068,3.23934,3087.1,3086.6,1.6253]
[1732052564850,3.23927,3087.2,3086.6,1.6253]
[1732052565058,3.2391,3087.3,3086.7,2.59169]
[1732052565335,6.47806,3087.4,3086.8,2.59167]
[1732052565558,3.2391,3087.3,3086.8,2.59167]
[1732052565873,3.2391,3087.3,3086.6,4.21707]
[1732052566078,3.2391,3087.3,3086.7,2.59169]
[1732052566369,3.23919,3087.2,3086.7,2.59169]
[1732052566874,1.576,3087.8,3086.7,0.680888]
[1732052567183,3.23897,3087.4,3086.8,2.59163]
[1732052567326,3.239,3087.4,3086.8,2.59163]
[1732052568083,3.239,3087.4,3086.9,2.59156]
[1732052568597,5.53439487,3088.7,3087.1,1.5135]
[1732052568749,3.23771,3088.6,3088.0,1.5135]
[1732052568929,0.482071,3088.6,3088.0,1.5135]
[1732052569276,1.583,3088.7,3087.7,4.1044]
[1732052569428,3.23795,3088.4,3087.7,1.5135]
[1732052569633,1.583,3088.7,3087.7,1.5135]
[1732052569634,3.23824,3088.1,3087.7,1.5135]
[1732052570019,3.23827,3088.1,3087.7,1.5135]
[1732052570174,1.583,3088.4,3087.1,1.5135]
[1732052570483,3.2388,3087.6,3087.1,1.5135]
[1732052570839,6.47764,3087.6,3087.1,1.5135]
[1732052571065,7.82138,3088.0,3087.1,1.5135]
[1732052571273,6.23873,3087.7,3087.1,1.5135]
[1732052571478,0.947734,3087.6,3087.1,1.5135]
[1732052571796,3.23892,3087.5,3087.1,1.5135]
[1732052571957,3.23884,3087.6,3086.9,2.59157]
[1732052572158,3.23898,3087.4,3086.9,5.18311]
[1732052572358,3.53884,3087.6,3087.0,2.5915]
[1732052572565,0.653884,3087.5,3087.0,2.5915]
[1732052572786,3.892774,3087.5,3087.0,2.5915]
[1732052574161,0.653884,3087.5,3087.1,2.59141]
[1732052574564,0.653884,3087.5,3087.2,2.59134]
[1732052575014,3.0,3087.8,3087.2,2.59134]
[1732052575210,4.583,3088.0,3087.3,2.59123]
[1732052575506,0.482129,3087.9,3087.4,4.10462]
[1732052575703,0.482129,3087.9,3087.4,1.5135]
[1732052575876,0.5065129,3087.8,3087.4,1.5135]
[1732052576294,3.0,3088.1,3087.7,2.59088]
[1732052576622,4.5178,3088.3,3087.7,2.59088]
[1732052576764,0.775579,3088.2,3087.7,2.59088]
[1732052577105,0.775579,3088.2,3087.8,2.59081]
[1732052577417,1.6048,3088.6,3087.6,1.6417]
[1732052577706,1.6048,3088.6,3087.7,0.2591]
[1732052577875,4.84224,3088.9,3088.2,2.59046]
[1732052578076,5.165984,3088.9,3088.2,4.23216]
[1732052578398,5.165984,3088.9,3088.3,2.59039]
[1732052578711,3.23767,3088.7,3088.0,2.59065]
[1732052579564,3.0,3088.6,3088.0,2.59065]
[1732052579767,6.23777,3088.6,3088.0,2.59065]
[1732052579967,0.947544,3088.5,3088.0,2.59065]
[1732052580266,0.947544,3088.5,3088.1,2.59058]
[1732052580468,3.0,3088.6,3088.1,2.59058]
[1732052580779,3.2376,3088.7,3087.9,1.6417]
[1732052580780,3.23787,3088.5,3087.9,1.6417]
[1732052582336,3.23787,3088.5,3087.0,2.59148]
[1732052582337,1.6048,3088.3,3086.4,1.6417]
[1732052582495,1.6048,3087.6,3086.9,2.59158]
[1732052582698,6.23828,3088.1,3086.8,1.6417]
[1732052582699,3.0,3087.8,3087.0,2.59143]
[1732052582885,6.2386,3087.8,3087.1,2.59142]
[1732052583386,3.23871,3087.7,3087.1,2.59142]
[1732052583590,3.23894,3087.5,3086.9,2.59158]
[1732052583902,3.23893,3087.5,3086.9,2.59158]
[1732052584383,3.23893,3087.5,3086.8,4.23334]
[1732052584589,3.562823,3087.5,3086.8,4.23333]
[1732052584835,3.23899,3087.4,3086.8,4.23333]
[1732052585332,3.23899,3087.4,3086.8,6.82496]
[1732052585796,3.23899,3087.4,3086.8,4.23333]
[1732052585999,3.23928,3087.2,3086.6,2.59181]
[1732052586336,3.23928,3087.2,3086.6,2.5918]
[1732052586337,6.47853,3087.2,3086.6,2.5918]
[1732052586627,4.43134313,3087.2,3086.4,2.59197]
[1732052586823,3.23946,3087.0,3086.2,2.59213]
[1732052587119,3.2396,3086.8,3086.2,2.59211]
[1732052587321,0.323946,3086.9,3086.1,1.5582]
[1732052587482,4.5232,3087.3,3086.3,2.5921]
[1732052587682,4.5232,3087.3,3086.8,2.59163]
[1732052588107,4.5232,3087.3,3086.6,2.59177]
[1732052588324,0.776221,3087.2,3086.6,5.18355]
[1732052588483,0.776221,3087.2,3086.4,4.12894]
[1732052588484,4.015451,3087.2,3086.4,4.12894]
[1732052588684,0.8538651,3087.1,3086.5,2.59185]
[1732052588982,0.8538651,3087.1,3086.6,2.59179]
[1732052589301,3.23947,3087.0,3086.4,4.12896]
[1732052589484,3.64877951,3087.0,3086.3,2.59204]
[1732052590117,3.23961,3086.8,3086.3,2.59204]
[1732052590289,3.23976,3086.7,3086.1,4.12923]
[1732052590489,3.24,3086.5,3085.9,2.59241]
[1732052590716,3.24006,3086.4,3085.9,2.59241]
[1732052591103,3.24013,3086.3,3085.7,4.12957]
[1732052591482,3.24006,3086.4,3085.8,2.59246]
[1732052591686,3.24013,3086.3,3085.8,2.59246]
[1732052592289,3.24013,3086.3,3085.2,2.593]
[1732052592290,3.2405,3086.0,3085.5,2.59273]
[1732052592600,6.48117,3085.9,3085.3,2.59292]
[1732052592806,3.24065,3085.8,3085.3,2.59292]
[1732052593325,3.24065,3085.8,3085.2,1.5314]
[1732052593629,3.24054,3085.9,3085.4,2.59284]
[1732052593939,3.24141,3085.1,3084.8,1.5314]
[1732052594240,1.5135,3085.2,3084.6,3.24187]
[1732052594555,1.5135,3085.5,3085.0,3.24147]
[1732052594709,1.5135,3085.8,3085.3,3.24117]
[1732052594894,1.5135,3085.8,3085.1,1.5314]
[1732052595226,1.5135,3085.8,3084.8,4.77301]
[1732052595227,3.2411,3085.4,3084.8,4.77301]
[1732052595592,3.24089,3085.6,3084.8,4.77301]
[1732052595888,3.24089,3085.6,3084.9,3.2415]
[1732052596087,4.040397,3085.6,3084.9,3.2415]
[1732052596370,0.799507,3085.6,3085.0,3.24143]
[1732052596659,3.24091,3085.6,3085.0,3.24143]
[1732052596833,4.75418,3085.8,3084.9,3.24157]
[1732052596834,3.24097,3085.5,3084.9,3.24157]
[1732052597243,1.5135,3085.8,3085.2,3.24119]
[1732052597649,1.5135,3085.8,3085.3,3.24116]
[1732052598030,3.0,3086.0,3085.4,3.24105]
[1732052598256,3.0,3086.0,3085.4,4.89795]
[1732052598467,6.24052,3086.0,3085.4,4.89795]
[1732052599428,6.24052,3086.0,3085.5,3.24095]
[1732052599630,3.24017,3086.3,3085.5,3.24095]
[1732052600024,3.24017,3086.3,3085.7,3.24073]
[1732052600224,3.24017,3086.3,3085.7,3.24067]
[1732052600464,3.24028,3086.2,3085.6,3.24085]
[1732052600650,1.6418,3086.4,3085.8,3.24057]
[1732052600828,1.6418,3086.4,3085.8,3.888699]
[1732052601146,4.88182,3086.4,3085.8,3.24057]
[1732052601683,3.24029,3086.2,3085.5,3.24092]
[1732052601825,3.2404,3086.1,3085.4,1.6569]
[1732052602159,3.2404,3086.1,3085.6,3.24085]
[1732052602475,6.48082,3086.1,3085.5,3.24095]
[1732052602617,3.2404,3086.1,3085.5,4.054847]
[1732052602819,3.24052,3086.0,3085.5,0.813897]
[1732052603534,3.24052,3086.0,3085.5,4.054847]
[1732052604874,3.24026,3086.2,3085.6,3.24083]
[1732052605069,3.24073,3085.8,3085.2,3.24127]
[1732052605220,6.48146,3085.8,3085.2,3.24127]
[1732052605532,0.324026,3086.1,3085.1,1.599]
[1732052605873,3.24094,3085.6,3085.1,1.599]
[1732052606037,4.83924,3085.6,3084.9,3.24152]
[1732052606234,4.83924,3085.6,3085.0,3.24148]
[1732052606466,4.83924,3085.6,3085.0,4.04374]
[1732052607117,1.644,3085.9,3085.4,3.24106]
[1732052607319,1.644,3085.9,3085.1,0.04187673]
[1732052607639,1.644,3085.9,3085.4,6.48196]
[1732052607822,7.81548,3086.2,3085.6,3.24084]
[1732052608023,4.81548,3086.2,3085.7,3.24072]
[1732052608839,4.81548,3086.2,3085.6,3.24084]
[1732052609226,3.24039,3086.1,3085.5,3.2409]
[1732052609422,4.81548,3086.2,3085.6,3.24085]
[1732052609767,3.24034,3086.1,3085.6,3.24085]
[1732052609962,1.5752,3086.2,3085.7,3.24075]
[1732052610279,1.5752,3086.2,3085.8,3.24057]
[1732052610622,1.5752,3086.2,3085.6,3.2408]
[1732052610623,4.81548,3086.2,3085.6,3.2408]
[1732052610823,5.297012,3086.2,3085.6,3.2408]
[1732052611163,3.24065,3085.9,3084.6,1.5272]
[1732052611325,3.24065,3085.9,3085.4,3.24106]
[1732052611531,3.24063,3085.9,3085.4,3.24106]
[1732052612966,3.24056,3085.9,3085.4,3.24106]
[1732052613473,3.24056,3085.9,3085.3,3.24107]
[1732052613630,3.24056,3085.9,3085.4,3.24103]
[1732052615061,3.24069,3085.8,3085.2,8.486453]
[1732052615284,3.24103,3085.5,3085.0,3.24143]
[1732052615594,3.24123,3085.3,3084.6,3.24191]
[1732052615753,6.48249,3085.3,3084.8,3.24163]
[1732052615956,3.24123,3085.3,3084.8,3.24163]
[1732052616208,3.24123,3085.3,3084.6,3.24191]
[1732052616209,3.24137,3085.2,3084.6,3.24191]
[1732052616359,3.24137,3085.2,3084.6,6.48376]
[1732052616692,3.24137,3085.2,3084.7,3.24176]
[1732052617397,6.48223,3085.4,3084.8,3.24169]
[1732052617603,3.24107,3085.4,3084.8,3.24169]
[1732052617777,3.24123,3085.3,3084.8,3.24169]
[1732052618301,4.80622,3085.7,3085.1,3.24129]
[1732052618600,4.80622,3085.7,3085.2,3.24122]
[1732052619061,4.80622,3085.7,3085.0,3.24148]
[1732052619260,3.24088,3085.6,3085.0,6.4829]
[1732052619492,3.24088,3085.6,3085.1,3.2413]